{"text_format":"1","workbook":"xlsx","n_sheets":1,"sheets":["хранение"],"not_rendered":{"charts":0,"images":0,"macros":1,"external_links":0,"defined_names":4,"comments":0,"pivot_tables":0},"unopened":[],"bounds":{"document_bytes":16777216,"sheet_cells":100000,"rows_first":2000,"rows_last":500,"rows_between":2000,"halvings":0,"cell_chars":16384,"cell_head_chars":4096},"cells_cut":0,"cells_raw":0,"read":"whole","date_system":"1900"}

{"sheet":"хранение","index":0,"n_rows":499,"n_cols":20,"rows_kept":499,"cut":false,"hidden":false,"merged":[]}
[{"$f":"\"KKS оборудования (всего внесено)    (\"&COUNTA(A2:A499)&\")\"","v":"KKS оборудования (всего внесено)    (498)"},"Цех","Участок (куратор)","вид оборудования",null,"начало ремонта по АВРу","окончание ремонта по АВРу","Вид ремонтa по АВР","№Технического акта","Вид ремонта по тех.акту",{"$f":"\"Имя документа\"&\" (\"&COUNTA(K2:K499)&\")\"&\"                        \"&\"на листах  с АВРами всего (\"&COUNTA(#REF!)+COUNTA(#REF!)+COUNTA(#REF!)+COUNTA(#REF!)+COUNTA(#REF!)+COUNTA(#REF!)&\")\"","v":"Имя документа (457)                        на листах  с АВРами всего (6)"},"Приложения","Вид документа","Стеллаж/Полка/\nпапка","Резерв","Резерв"]
[246112,null,null,null,null,null,null,null,null,null,"Акт №65-03-9-220 от 22.11.2018г.=по Акту№6503-9-107 п.5 Столовая, лифты"]
[246113,null,null,null,null,null,null,null,null,null,"Акт №65-03-9-220 от 22.11.2018г.=по Акту№6503-9-107 п.5 Столовая, лифты"]
["00ABB10"]
["00ABB10GT510",null,null,null,null,null,null,null,null,null,"ТН 500кВ_ОРУ_Протокол_20171221"]
["00ABB20",null,null,null,null,null,null,null,null,null,"27-2.6-1-867",null,null,null,null,null,null,null,null,{"$f":"E6/1","v":0}]
["00ABB20",null,null,null,null,null,null,null,null,null,"27-2.2-1-1659_ЗИ_00ABB20"]
["00ABB20GT510",null,null,null,null,null,null,null,null,null,"27-2.6-1-1869_ТР_00ABB20GT510"]
["00ABB20GT510",null,null,null,null,null,null,null,null,null,"ТН 500кВ_ОРУ_Протокол_20171221"]
["00ABC10GT510",null,null,null,null,null,null,null,null,null,"27-2.6-1-1851_ТО_00ABC10GT510_ОПН 500 кВ"]
["00ABC10GT510",null,null,null,null,null,null,null,null,null,"27-2.6-1-1850_ТР_00ABC10GT510"]
["00ABC10GT510",null,null,null,null,null,null,null,null,null,"ТН 500кВ_ОРУ_Протокол_20171221"]
["00ABC20GS110",null,null,null,null,null,null,null,null,null,"27-2.2-1-1308_КР_Разъеденитель 500 кВ, ЗН, 00ABC20GS110"]
["00ABC20GS110",null,null,null,null,null,null,null,null,null,"27-2.2-1-1308_КР_Разъеденитель 500 кВ, ЗН, 00ABC20GS110"]
["00ABC20GV410",null,null,null,null,null,null,null,"31-27-2.6-1-10-113-201705",null,"27-2.6-1-860",null,null,null,null,null,null,null,null,{"$f":"E15/1","v":0}]
["00ABL10",null,null,null,null,null,null,null,null,null,"27-2.2-1-1897_ЗИ_00ABL10"]
["00ABL10GT510",null,null,null,null,null,null,null,null,null,"ТН 500кВ_ОРУ_Протокол_20171221"]
["00ABL10GT510",null,null,null,null,null,null,null,null,null,"00ABL10GT510_О метролог хар-ках ТН СР В550"]
["00ABL10GT510",null,null,null,null,null,null,null,null,null,"27-2.2-1-1649_ТО_ТН 500кВ, 00ABL10GT510, 00ABL10GT520"]
["00ABL10GT520",null,null,null,null,null,null,null,null,null,"ТН 500кВ_ОРУ_Протокол_20171221"]
["00ABL10GT520",null,null,null,null,null,null,null,null,null,"27-2.2-1-1649_ТО_ТН 500кВ, 00ABL10GT510, 00ABL10GT520"]
["00ABL20",null,null,null,null,null,null,null,null,null,"27-2.2-1-1896_ЗИ_00ABL20"]
["00ABL20GT110",null,null,null,null,null,null,null,null,null,"27-2.6-1-856",null,null,null,null,null,null,null,null,{"$f":"E23/1","v":0}]
["00ABL20GT410",null,null,null,null,null,null,null,null,null,"27-2.6-1-859",null,null,null,null,null,null,null,null,{"$f":"E24/1","v":0}]
["00ABL20GT510",null,null,null,null,null,null,null,null,null,"27-2.6-1-863",null,null,null,null,null,null,null,null,{"$f":"E25/1","v":0}]
["00ABL20GT510",null,null,null,null,null,null,null,null,null,"ТН 500кВ_ОРУ_Протокол_20171221"]
["00ABL20GT510",null,null,null,null,null,null,null,null,null,"00ABL20GT510_О метролог хар-ках ТН СР В550"]
["00ABL20GT510",null,null,null,null,null,null,null,null,null,"27-2.2-1-1627_ТО_ТН 500кВ, 00ABL20GT510,00ABL20GT520"]
["00ABL20GT520",null,null,null,null,null,null,null,null,null,"ТН 500кВ_ОРУ_Протокол_20171221"]
["00ABL20GT520",null,null,null,null,null,null,null,null,null,"00ABL20GT520_О метролог хар-ках ТН СР В550"]
["00ABL20GT520",null,null,null,null,null,null,null,null,null,"27-2.2-1-1627_ТО_ТН 500кВ, 00ABL20GT510,00ABL20GT520"]
["00ABL30GT510",null,null,null,null,null,null,null,"31-27-2.6-1-10-138-201707"]
["00ABL30GT510",null,null,null,null,null,null,null,null,null,"ТН 500кВ_ОРУ_Протокол_20171221"]
["00ABL30GT510",null,null,null,null,null,null,null,null,null,"00ABL30GT510_О метролог хар-ках ТН СР В550"]
["00ABL30GT510",null,null,null,null,null,null,null,null,null,"27-2.2-1-1617_ТО_ТН 500кВ, 00ABL30GT510,00ABL30GT520"]
["00ABL30GT520",null,null,null,null,null,null,null,null,null,"ТН 500кВ_ОРУ_Протокол_20171221"]
["00ABL30GT520",null,null,null,null,null,null,null,null,null,"27-2.2-1-1301_TO_00ABL30GT520"]
["00ABL30GT520",null,null,null,null,null,null,null,null,null,"27-2.2-1-1617_ТО_ТН 500кВ, 00ABL30GT510,00ABL30GT520"]
["00ABR00"]
["00ABR00",null,null,null,null,null,null,null,null,null,"27-2.2-1-916_ТР_00ABR00"]
["00ABR10",null,null,null,null,null,null,null,null,null,"27-2.2-1-475_УД_КУ-6С;НКУ-РУ;QF1;МП;ЯВШ-3-25-Щ1"]
["00ABR10",null,null,null,null,null,null,null,null,null,"00ABR10_Авар Акт_11-18-4-595_20180529"]
["00ABR10",null,null,null,null,null,null,null,null,null,"АКТ по термосигнализаторам_к Тех акту 27-18-84-2017.docx"]
["00ABR10",null,null,null,null,null,null,null,"27-18-84-2017_201712"]
["00ABR10",null,null,null,null,null,null,null,null,null,"Виброконтроль охладителей реактора 00ABR10, 00ABR20, 00ABR30"]
["00ABR10",null,null,null,null,null,null,null,null,null,"00ABR10_термосигнализатор_20171206_RU"]
["00ABR10",null,null,null,null,null,null,null,null,null,"27-2.2-1-611_УД_вент №2 00ABR11"]
["00ABR10",null,null,null,null,null,null,null,null,null,"27-2.2-1-610_УД_вент №3 00ABR11"]
["00ABR10 Вентилятор № 1",null,null,null,null,null,null,null,null,null,"27-2.2-1-955_КР_00ABR10 Вентилятор №1"]
["00ABR10 Вентилятор № 3",null,null,null,null,null,null,null,null,null,"27-2.2-1-956_КР_00ABR10 Вентилятор №3"]
["00ABR10 Вентилятор № 5",null,null,null,null,null,null,null,null,null,"27-2.2-1-957_КР_00ABR10 Вентилятор №5"]
["00ABR20",null,null,null,null,null,null,null,null,null,"27-2.2-1-475_УД_КУ-6С;НКУ-РУ;QF1;МП;ЯВШ-3-25-Щ1"]
["00ABR20",null,null,null,null,null,null,null,null,null,"АКТ по термосигнализаторам_к Тех акту 27-18-84-2017.docx"]
["00ABR20",null,null,null,null,null,null,null,"27-18-84-2017_201712"]
["00ABR20",null,null,null,null,null,null,null,null,null,"Виброконтроль охладителей реактора 00ABR10, 00ABR20, 00ABR30"]
["00ABR20",null,null,null,null,null,null,null,null,null,"00ABR20_термосигнализатор_20171206_RU"]
["00ABR20 Вентилятор № 1",null,null,null,null,null,null,null,null,null,"27-2.2-1-917_КР_00ABR20 Вентилятор №1"]
["00ABR20 Вентилятор № 7",null,null,null,null,null,null,null,null,null,"27-2.2-1-954_КР_00ABR20 Вентилятор №7"]
["00ABR30",null,null,null,null,null,null,null,null,null,"27-2.2-1-475_УД_КУ-6С;НКУ-РУ;QF1;МП;ЯВШ-3-25-Щ1"]
["00ABR30",null,null,null,null,null,null,null,null,null,"27-2.2-1-475_УД_КУ-6С;НКУ-РУ;QF1;МП;ЯВШ-3-25-Щ1"]
["00ABR30",null,null,null,null,null,null,null,null,null,"АКТ по термосигнализаторам_к Тех акту 27-18-84-2017.docx"]
["00ABR30",null,null,null,null,null,null,null,"27-18-84-2017_201712"]
["00ABR30",null,null,null,null,null,null,null,null,null,"Виброконтроль охладителей реактора 00ABR10, 00ABR20, 00ABR30"]
["00ABR30",null,null,null,null,null,null,null,null,null,"00ABR30_термосигнализатор_20171206_RU"]
["00ABR30",null,null,null,null,null,null,null,null,null,"27-2.2-1-915_ТР_00ABR30"]
["00ABT00"]
["00ABT00",null,null,null,null,null,null,null,null,null,"27-2.2-1-2101_TР_ОРУ-500кВ.220кВ. ОУТ АТГ. Автотрансформатор 500Кв.220кВ."]
["00ABT10",null,null,null,null,null,null,null,null,null,"27-2.6-1-1863_ТР_00ABT10"]
["00ABT10",null,null,null,null,null,null,null,null,null,"АКТ по термосигнализаторам_к Тех акту 27-18-84-2017.docx"]
["00ABT10",null,null,null,null,null,null,null,"27-18-84-2017_201712"]
["00ABT10",null,null,null,null,null,null,null,null,null,"00ABT фаза АВС_Закл Маслонасосы автотрансформ"]
["00ABT10",null,null,null,null,null,null,null,null,null,"00ABT фаза ABC_Закл Охладители автотрансформ"]
["00ABT10",null,null,null,null,null,null,null,null,null,"00ABT10_термосигнализатор_20171206_RU"]
["00ABT10",null,null,null,null,null,null,null,null,null,"27-2.2-1-1558_ТР_Автотрансформатор 500кВ_220кВ, 00ABT10, 00ABT20,00ABT30"]
["00ABT10 Вентилятор № 1",null,null,null,null,null,null,null,null,null,"27-2.2-1-958_УД_00ABT10 Вентилятор №1"]
["00ABT10GS510",null,null,null,null,null,null,null,null,null,"27-2.6-1-1856_ТР_00ABT10GS510"]
["00ABT10GV410",null,null,null,null,null,null,null,null,null,"27-2.6-1-1855_ТО_00ABT10GV410_ОПН 35 кВ"]
["00ABT10GV510",null,null,null,null,null,null,null,null,null,"27-2.6-1-1854_ТР_00ABT10GT510_тр-р напряжения"]
["00ABT20",null,null,null,null,null,null,null,null,null,"27-2.6-1-1892_ТР_00ABT20"]
["00ABT20",null,null,null,null,null,null,null,null,null,"АКТ по термосигнализаторам_к Тех акту 27-18-84-2017.docx"]
["00ABT20",null,null,null,null,null,null,null,"27-18-84-2017_201712"]
["00ABT20",null,null,null,null,null,null,null,null,null,"00ABT фаза АВС_Закл Маслонасосы автотрансформ"]
["00ABT20",null,null,null,null,null,null,null,null,null,"00ABT фаза ABC_Закл Охладители автотрансформ"]
["00ABT20",null,null,null,null,null,null,null,null,null,"00ABT20_термосигнализатор_20171206_RU"]
["00ABT20",null,null,null,null,null,null,null,null,null,"27-2.2-1-1558_ТР_Автотрансформатор 500кВ_220кВ, 00ABT10, 00ABT20,00ABT30"]
["00ABT30",null,null,null,null,null,null,null,null,null,"27-2.6-1-1893_ТР_00ABT30"]
["00ABT30",null,null,null,null,null,null,null,null,null,"АКТ по термосигнализаторам_к Тех акту 27-18-84-2017.docx"]
["00ABT30",null,null,null,null,null,null,null,"27-18-84-2017_201712"]
["00ABT30",null,null,null,null,null,null,null,null,null,"00ABT фаза АВС_Закл Маслонасосы автотрансформ"]
["00ABT30",null,null,null,null,null,null,null,null,null,"00ABT фаза ABC_Закл Охладители автотрансформ"]
["00ABT30",null,null,null,null,null,null,null,null,null,"00ABT30_термосигнализатор_20171206_RU"]
["00ABT30",null,null,null,null,null,null,null,null,null,"27-2.2-1-1558_ТР_Автотрансформатор 500кВ_220кВ, 00ABT10, 00ABT20,00ABT30"]
["00ADB10GT510",null,null,null,null,null,null,null,null,null,"27-2.2-1-660_ДМ_00ADB10 GT510"]
["00ADB10GT510",null,null,null,null,null,null,null,null,null,"27-2.2-1-662_ДМ_00ADB10 GT510"]
["00ADB20GV410",null,null,null,null,null,null,null,"31-27-2.6-1-10-138-201707",null,"27-2.6-1-1650_ТР_00ADB20GV410"]
["00ADB30GT510",null,null,null,null,null,null,null,null,null,"27-2.6-1-1648_ТР_00ADB30GT510"]
["00ADB30GT510",null,null,null,null,null,null,null,null,null,"27-2.2-1-661_ДМ_00ADB30 GT510"]
["00ADC",null,null,null,null,null,null,null,null,null,"27-2.2-1-1911_ЗИ_00ADC"]
["00ADC10GV410",null,null,null,null,null,null,null,null,null,"27-2.6-1-1853_ТО_00ADC10GV410"]
["00ADC30GV410",null,null,null,null,null,null,null,"31-27-2.6-1-10-113-201705",null,"27-2.6-1-858",null,null,null,null,null,null,null,null,{"$f":"E100/1","v":0}]
["00ADL40GT510",null,null,null,null,null,null,null,null,null,"27-2.6-1-1649_ТР_00ADL40GT510"]
["01ABB10",null,null,null,null,null,null,null,null,null,"27-2.2-1-1805_ЗИ_01ABB10"]
["01ABQ20",null,null,null,null,null,null,null,null,null,"27-2.6-1-1844_ТО_01ABQ20"]
["01ABQ20GT110",null,null,null,null,null,null,null,null,null,"27-2.6-1-1849_ТР_01ABQ20GT110"]
["01ABQ30",null,null,null,null,null,null,null,null,null,"27-2.6-1-1847_ТО_01ABQ30"]
["01ABQ30GT110",null,null,null,null,null,null,null,null,null,"27-2.6-1-1846_ТР_01ABQ30GT110"]
["01ABQ50GT110",null,null,null,null,null,null,null,null,null,"27-2.6-1-1848_ТР_01ABQ50GT110"]
["01ABQ50GT110",null,null,null,null,null,null,null,null,null,"01ABQ50GT110_Акт замены денсиметров 1ТТ В 510_20180914"]
["01ABQ50GT110",null,null,null,null,null,null,null,null,null,"27-2.2-1-1903_ТР_01ABQ50GT110"]
["01ABQ60GT110",null,null,null,null,null,null,null,null,null,"27-2.6-1-1845_ТР_01ABQ60GT110"]
["01ADC10GT510",null,null,null,null,null,null,null,null,null,"27-2.6-1-1852_ТР_01ADC10GT510"]
["01ADC30GS110",null,null,null,null,null,null,null,null,null,"27-2.6-1-34-2017",null,null,null,null,null,null,null,null,{"$f":"E112/1","v":0}]
["01ADQ",null,null,null,null,null,null,null,null,null,"27-2.2-1-1610_ТО_Выключатель 220кВ, 01ADQ"]
["02ABB20",null,null,null,null,null,null,null,null,null,"27-2.2-1-1660_ЗИ_02ABB20"]
["02ABQ10GT110",null,null,null,null,null,null,null,null,null,"27-2.2-1-663_ДМ_02ABQ10 GT110"]
["02ABQ20GT110",null,null,null,null,null,null,null,null,null,"02ABQ20GT110_1ТТ ВР 500 кВ_20180507"]
["02ADC30GS110",null,null,null,null,null,null,null,null,null,"27-2.2-1-1424_KP_02ADC30GS110"]
["02ADQ",null,null,null,null,null,null,null,null,null,"27-2.2-1-1611_ТО_Выключатель 220кВ, 02ADQ"]
["02ADQ10GS120",null,null,null,null,null,null,null,null,null,"02ADQ10GS120_Авар АКТ_Аппаратные зажимы_20180607"]
["03ABQ10",null,null,null,null,null,null,null,null,null,"27-2.2-1-1314_TO_Выключатель 500 кВ, 03ABQ10"]
["03ABQ10GS110",null,null,null,null,null,null,null,null,null,"27-2.6-1-861",null,null,null,null,null,null,null,null,{"$f":"E121/1","v":0}]
["03ABQ10GT110",null,null,null,null,null,null,null,null,null,"27-2.2-1-1325_ТР_ТТ 500кВ, 03ABQ10GT110"]
["03ABQ20",null,null,null,null,null,null,null,null,null,"27-2.2-1-1318_TO_Выключатель 500 кВ, 03ABQ20"]
["03ABQ20GS110",null,null,null,null,null,null,null,null,null,"27-2.2-1-1615_КР_Разъеденитель 500 кВ, 03ABQ20GS110"]
["03ABQ20GS110",null,null,null,null,null,null,null,null,null,"27-2.2-1-1615_КР_Разъеденитель 500 кВ, 03ABQ20GS110"]
["03ABQ20GT110",null,null,null,null,null,null,null,null,null,"27-2.2-1-1326_ТР_ТТ 500кВ, 03ABQ20GT110"]
["03ABQ30",null,null,null,null,null,null,null,null,null,"27-2.2-1-1612_ТО_Выключатель 500кВ, 03ABQ30"]
["03ABQ30GS120",null,null,null,null,null,null,null,"31-27-2.6-1-10-113-201705",null,"27-2.6-1-862",null,null,null,null,null,null,null,null,{"$f":"E128/1","v":0}]
["03ABQ30GS120",null,null,null,null,null,null,null,null,null,"27-2.2-1-1614_КР_Разъеденитель 500 кВ, ЗН, 03ABQ30GS120"]
["03ABQ30GS120",null,null,null,null,null,null,null,null,null,"27-2.2-1-1614_КР_Разъеденитель 500 кВ, ЗН, 03ABQ30GS120"]
["03ABQ30GT110",null,null,null,null,null,null,null,"31-27-2.6-1-10-113-201705",null,"27-2.6-1-857",null,null,null,null,null,null,null,null,{"$f":"E131/1","v":0}]
["03ABQ30GT110",null,null,null,null,null,null,null,null,null,"27-2.2-1-1613_ТР_ТТ 500 кВ, 03ABQ30GT110"]
["03ABQ40GT110",null,null,null,null,null,null,null,null,null,"27-2.2-1-1616_ТР_ТТ 500 кВ, 03ABQ40GT110"]
["03ABQ50GT110",null,null,null,null,null,null,null,null,null,"03ABQ50GT110_Замена денсиметров 1ТТ В 520_20180903"]
["03ABQ50GT110",null,null,null,null,null,null,null,null,null,"27-2.2-1-1608_ТР_ТТ 500 кВ, 03ABQ50GT110"]
["03ABQ60GT110",null,null,null,null,null,null,null,null,null,"27-2.2-1-1324_ТР_ТТ 500кВ, 03ABQ60GT110"]
["03ADQ",null,null,null,null,null,null,null,null,null,"27-2.2-1-1905_ТО_03ADQ"]
["03ADQ10GS120",null,null,null,null,null,null,null,"31-27-2.6-1-10-138-201707",null,"27-2.6-1-1654_КР_03ADQ10GT120"]
["03ADQ10GT110",null,null,null,null,null,null,null,null,null,"27-2.6-1-1646_ТР_03ADQ10GT110"]
["03ADQ10GT110",null,null,null,null,null,null,null,null,null,"03ADQ10GT110_Ответ_ABB_20171018"]
["04ABQ30GS110",null,null,null,null,null,null,null,null,null,"27-2.6-1-1843_ТР_04ABQ30GS110"]
["04ABQ30GT110",null,null,null,null,null,null,null,null,null,"11-18-4-1481_Замена денсиметра ТТ_04ABQ30GT110"]
["04ADQ",null,null,null,null,null,null,null,null,null,"27-2.2-1-1609_ТО_Выключатель 220кВ 04ADQ"]
["04ADQ10GS120",null,null,null,null,null,null,null,"31-27-2.6-1-10-138-201707",null,"27-2.6-1-1651_ТР_04ADQ10GS120"]
["04ADQ10GT110",null,null,null,null,null,null,null,null,null,"27-2.6-1-855",null,null,null,null,null,null,null,null,{"$f":"E145/1","v":0}]
["05ADQ",null,null,null,null,null,null,null,null,null,"27-2.2-1-934_ТО_05ADQ. В 220 кВ ВЛ Окунёво"]
["05ADQ10GS120",null,null,null,null,null,null,null,"31-27-2.6-1-10-138-201707",null,"27-2.6-1-1653_КР_05ADQ10GS120"]
["06ADQ",null,null,null,null,null,null,null,null,null,"27-2.2-1-935_ТО_06ADQ. В 220 кВ ВЛ Каменская"]
["06ADQ10GS120",null,null,null,null,null,null,null,"31-27-2.6-1-10-138-201707",null,"27-2.6-1-1652_ТР_06ADQ10GS120"]
["07ADQ10GS110",null,null,null,null,null,null,null,null,null,"27-2.2-1-906_КР_07ADQ10 GS110. ШР 220 кВ ОВ совместно с ЗН"]
["07ADQ10GS120",null,null,null,null,null,null,null,null,null,"57108 ав.акт_11-18-4-1461_ГС-катушка ЭМБ"]
["07ADQ10GS220",null,null,null,null,null,null,null,null,null,"57108 ав.акт_11-18-4-1461_ГС-катушка ЭМБ"]
["07ADQ10GT110",null,null,null,null,null,null,null,null,null,"27-2.6-1-1647_ТР_07ADQ10GT110"]
["09ADQ10GS110",null,null,null,null,null,null,null,null,null,"27-2.2-1-905_КР_09ADQ10 GS110. ШР 220 кВ 1СШ ВЛ БАЭС №2 совместно с ЗН"]
["1NJ10D001",null,null,null,null,null,null,null,null,null,"27-133-2016",null,null,null,null,null,null,null,null,{"$f":"E155/1","v":0}]
["1NJ10D001",null,null,null,null,null,null,null,"31-27-2.6-1-10-133-201707"]
["1NJ10D001",null,null,null,null,null,null,null,"31-27-2.6-1-10-152-201708"]
["1NJ10D001",null,null,null,null,null,null,null,null,null,"27-2.2-1-1052_ТР_1NJ10D001"]
["1NJ30D001",null,null,null,null,null,null,null,null,null,"27-134-2016",null,null,null,null,null,null,null,null,{"$f":"E159/1","v":0}]
["1NJ30D001",null,null,null,null,null,null,null,"31-27-2.6-1-10-133-201707"]
["1NJ30D001",null,null,null,null,null,null,null,"31-27-2.6-1-10-152-201708"]
["1NJ30D001",null,null,null,null,null,null,null,null,null,"27-2.2-1-1052_ТР_1NJ10D001"]
["1NJ30D001",null,null,null,null,null,null,null,null,null,"27-2.2-1-1051_ТР_1NJ30D001"]
["1UBR00 212",null,null,null,null,null,null,null,null,null,"27-2.2-1-646_УД_Перечень оборудов"]
["1UBR12GP202",null,null,null,null,null,null,null,null,null,"1UBR12GP202_20170809_KHO"]
["1UBR23GH102",null,null,null,null,null,null,null,"31-27-2.6-1-10-74-201704"]
["1UCQ00GP301",null,null,null,null,null,null,null,null,null,"1UCQ00GP301_20170810_KHO"]
["1UH86D01",null,null,null,null,null,null,null,null,null,"27-135-2016",null,null,null,null,null,null,null,null,{"$f":"E168/1","v":0}]
["1UH86D01",null,null,null,null,null,null,null,"31-27-2.6-1-10-133-201707",null,"27-2.6-1-1192_1UH86D01"]
["1UH86D02",null,null,null,null,null,null,null,null,null,"27-135-2016",null,null,null,null,null,null,null,null,{"$f":"E170/1","v":0}]
["1UH86D02",null,null,null,null,null,null,null,"31-27-2.6-1-10-133-201707",null,"27-2.6-1-1195_1UH86D02"]
["1UH86D02",null,null,null,null,null,null,null,"31-27-2.6-1-10-138-201707"]
["1UKS00GP203",null,null,null,null,null,null,null,null,null,"1UKS00GP203_20171117_KHO"]
["1UKS14GP301",null,null,null,null,null,null,null,null,null,"1UKS14GP301_20170725_KHO"]
["1UMA07GP102",null,null,null,null,null,null,null,null,null,"1UMA07GP102_20171107_KHO"]
["1UMA07GP303",null,null,null,null,null,null,null,null,null,"1UMA07GP303_20170829_KHO"]
["1UYE01G001",null,null,null,null,null,null,null,null,null,"1UYE01G001_20170911_KHO"]
["1UYE01G002",null,null,null,null,null,null,null,null,null,"11-18-4-766_TP_1UYE01G002"]
["1UYE01G003",null,null,null,null,null,null,null,null,null,"1UYE01G003_20170825_KHO"]
["1UYE02G001",null,null,null,null,null,null,null,null,null,"1UYE02G001_20171012_KHO"]
["1UYE02G002",null,null,null,null,null,null,null,null,null,"11-18-4-886_KP_1UYE02G002"]
["1UYE02G003",null,null,null,null,null,null,null,null,null,"11-18-4-629_KP_1UYE02G003"]
["1UYE02G004",null,null,null,null,null,null,null,null,null,"11-18-4-1070_ТР_1UYE02G004"]
["1UYF01G001",null,null,null,null,null,null,null,null,null,"11-18-4-885_KP_1UYF01G001"]
["1UYF01G002",null,null,null,null,null,null,null,null,null,"11-18-4-1071_ТР_1UYF01G002"]
["1С 6кВ (Водная)",null,null,null,null,null,null,null,null,null,"27-2.2-1-01_ТО_1С"]
["27GH05AP002",null,null,null,null,null,null,null,null,null,"27-2.2-1-876_УД_28GHE05AP002"]
["27SAA01AN001",null,null,null,null,null,null,null,null,null,"27-465-2016",null,null,null,null,null,null,null,null,{"$f":"E188/1","v":0}]
["27SAA01AN002",null,null,null,null,null,null,null,null,null,"27-466-2016",null,null,null,null,null,null,null,null,{"$f":"E189/1","v":0}]
["27SAA05AN001",null,null,null,null,null,null,null,null,null,"27-2.2-1-538_ТР_4SAA05(П5)AN001"]
["27SAA05AN001",null,null,null,null,null,null,null,null,null,"27-467-2016",null,null,null,null,null,null,null,null,{"$f":"E191/1","v":0}]
["27SAA05AN002",null,null,null,null,null,null,null,null,null,"27-2.2-1-530_ТР_27SAA(П5)AN002"]
["29UAR",null,null,null,null,null,null,null,null,null,"29UAR_сметы ЭМР и ПНР"]
["2NJ10D001",null,null,null,null,null,null,null,null,null,"27-136-2016",null,null,null,null,null,null,null,null,{"$f":"E194/1","v":0}]
["2NJ10D001",null,null,null,null,null,null,null,"31-27-2.6-1-10-152-201708",null,"27-2.6-1-1202_2NJ10D001"]
["2NJ10D001",null,null,null,null,null,null,null,null,null,"27-2.2-1-1050_ТР_2NJ10D001"]
["2NJ30D001",null,null,null,null,null,null,null,null,null,"27-137-2016",null,null,null,null,null,null,null,null,{"$f":"E197/1","v":0}]
["2NJ30D001",null,null,null,null,null,null,null,"31-27-2.6-1-10-152-201708"]
["2NJ30D001",null,null,null,null,null,null,null,null,null,"27-2.2-1-1049_ТР_2NJ30D001"]
["2UBR23GP862",null,null,null,null,null,null,null,null,null,"2UBR23GP862_20171201_RU"]
["2UH86D03",null,null,null,null,null,null,null,null,null,"27-138-2016",null,null,null,null,null,null,null,null,{"$f":"E201/1","v":0}]
["2UH86D03",null,null,null,null,null,null,null,"31-27-2.6-1-10_200_201711"]
["2UH86D03",null,null,null,null,null,null,null,"31-27-2.6-1-10-104-201705"]
["2UH86D04",null,null,null,null,null,null,null,null,null,"27-138-2016",null,null,null,null,null,null,null,null,{"$f":"E204/1","v":0}]
["2UKS03G005",null,null,null,null,null,null,null,null,null,"2UKS03G005_20170907_KHO"]
["2UMA15GP202",null,null,null,null,null,null,null,null,null,"11-18-4-765_TP_2UMA15GP202"]
["2UMA15GP302",null,null,null,null,null,null,null,null,null,"11-18-4-628_KP_2UMA15GP302"]
["2UMA93GP301",null,null,null,null,null,null,null,null,null,"11-18-4-1726_ТР_2UMA93GP301"]
["2UZX07GH010",null,null,null,null,null,null,null,null,null,"27-2.2-1-599_ТР_2UZX07GH010"]
["2UZX07GH0102",null,null,null,null,null,null,null,null,null,"27-2.2-1-1141_ТР_2UZX07GH0102"]
["2UZX07GH011",null,null,null,null,null,null,null,null,null,"27-2.2-1-647_ТР_2UZX07GH011"]
["2UZX07GH012",null,null,null,null,null,null,null,null,null,"27-2.2-1-666_ТР_АВ 0,4 кВ"]
["2С 6 кВ (водная) яч.10",null,null,null,null,null,null,null,null,null,"27-2.2-1-2299_ТР_2С яч. 2,4,8,10,12,14,16,18"]
["2С 6 кВ (водная) яч.12",null,null,null,null,null,null,null,null,null,"27-2.2-1-2299_ТР_2С яч. 2,4,8,10,12,14,16,18"]
["2С 6 кВ (водная) яч.14",null,null,null,null,null,null,null,null,null,"27-2.2-1-2299_ТР_2С яч. 2,4,8,10,12,14,16,18"]
["2С 6 кВ (водная) яч.16",null,null,null,null,null,null,null,null,null,"27-2.2-1-2299_ТР_2С яч. 2,4,8,10,12,14,16,18"]
["2С 6 кВ (водная) яч.18",null,null,null,null,null,null,null,null,null,"27-2.2-1-2299_ТР_2С яч. 2,4,8,10,12,14,16,18"]
["2С 6 кВ (Водная) яч.2",null,null,null,null,null,null,null,null,null,"27-2.2-1-2299_ТР_2С яч. 2,4,8,10,12,14,16,18"]
["2С 6 кВ (водная) яч.4",null,null,null,null,null,null,null,null,null,"27-2.2-1-2299_ТР_2С яч. 2,4,8,10,12,14,16,18"]
["2С 6 кВ (водная) яч.8",null,null,null,null,null,null,null,null,null,"27-2.2-1-2299_ТР_2С яч. 2,4,8,10,12,14,16,18"]
["2С 6кВ (Водная)",null,null,null,null,null,null,null,null,null,"27-2.2-1-10_ТО_2С"]
["3NJ30D001",null,null,null,null,null,null,null,"31-27-2.6-1-10-152-201708"]
["3UKS01G007",null,null,null,null,null,null,null,null,null,"3UKS01G007_20171017_KHO"]
["3UKS02G010",null,null,null,null,null,null,null,null,null,"3UKS02G010_20171121_KHO"]
["3UYF01G001",null,null,null,null,null,null,null,null,null,"11-18-4-1217_KP_3UYF01G001"]
["40BAA10",null,null,null,null,null,null,null,null,null,"27-2.2-1-43_УД_40BAA10"]
["40BAA10",null,null,null,null,null,null,null,null,null,"4MKA10_40BAA10,20,30,40,50,60_Снижен изол В ТГ-7_20180606"]
["40BAA10",null,null,null,null,null,null,null,null,null,"27-2.2-1-1335_ТР_4BAA10, ТЭНЕ-СЭЩ-24-24000-560 У1"]
["40BAA20",null,null,null,null,null,null,null,null,null,"4MKA10_40BAA10,20,30,40,50,60_Снижен изол В ТГ-7_20180606"]
["40BAA30",null,null,null,null,null,null,null,null,null,"4MKA10_40BAA10,20,30,40,50,60_Снижен изол В ТГ-7_20180606"]
["40BAA40",null,null,null,null,null,null,null,null,null,"4MKA10_40BAA10,20,30,40,50,60_Снижен изол В ТГ-7_20180606"]
["40BAA50",null,null,null,null,null,null,null,null,null,"4MKA10_40BAA10,20,30,40,50,60_Снижен изол В ТГ-7_20180606"]
["40BAA60",null,null,null,null,null,null,null,null,null,"4MKA10_40BAA10,20,30,40,50,60_Снижен изол В ТГ-7_20180606"]
["4GCF40AP001",null,null,null,null,null,null,null,null,null,"4GCF40AP001 (НДВ-1)_Заключение_20180206"]
["41BBS10",null,null,null,null,null,null,null,null,null,"27-2.6-1-819",null,null,null,null,null,null,null,null,{"$f":"E235/1","v":0}]
["41BBS30",null,null,null,null,null,null,null,null,null,"27-2.6-1-820",null,null,null,null,null,null,null,null,{"$f":"E236/1","v":0}]
["41UBH00GP201",null,null,null,null,null,null,null,null,null,"11-18-4-427_41UBH00GP201"]
["41UBH00GP301",null,null,null,null,null,null,null,null,null,"11-18-4-1729_КР_41UBH00GP301"]
["41UBQ93GP201",null,null,null,null,null,null,null,null,null,"11-18-4-1400_KP_41UBQ93GP201"]
["41UBQ93GP301",null,null,null,null,null,null,null,null,null,"41UBQ93GP301_20171004_KHO"]
["41UBR00GP301",null,null,null,null,null,null,null,null,null,"11-18-4-1399__TP_41UBR00GP301"]
["41UBR00GP501",null,null,null,null,null,null,null,null,null,"11-18-4-1223_TP_41UBR00GP501"]
["41UBR07GP201",null,null,null,null,null,null,null,null,null,"41UBR07GP201_20170711_KHO"]
["41UBR12GP201",null,null,null,null,null,null,null,null,null,"41UBR12GP201_20170914_KHO"]
["41UBR12GP301",null,null,null,null,null,null,null,null,null,"11-18-4-162_41UBR12GP301"]
["41UBR12GP302",null,null,null,null,null,null,null,null,null,"11-18-4-328_41UBR12GP302"]
["41UBR18GP201",null,null,null,null,null,null,null,null,null,"11-18-4-676_KP_41UBR18GP201"]
["41UBR18GP202",null,null,null,null,null,null,null,null,null,"41UBR18GP202_20171010_KHO"]
["41UBR18GP203",null,null,null,null,null,null,null,null,null,"41UBR18GP203_20171107_KHO"]
["41UBR18GP301",null,null,null,null,null,null,null,null,null,"11-18-4-1719_ТР_41UBR18GP301"]
["41UBR18GP302",null,null,null,null,null,null,null,null,null,"11-18-4-429_41UBR18GP302"]
["41UBR18GP303",null,null,null,null,null,null,null,null,null,"11-18-4-535_TP_41UBR18GP303"]
["41UBR23GH101",null,null,null,null,null,null,null,null,null,"41UBR23GH101_О согл ПИМ испытаний_20171211"]
["41UBR23GH102",null,null,null,null,null,null,null,null,null,"41UBR23GH102_О согл ПИМ испытаний_20171211"]
["41UBR23GH102",null,null,null,null,null,null,null,null,null,"27-2.2-1-677_КР_НП НЭ НКУ-ПР 0,4 кВ, блок НКУ-РУ 0,4 кВ"]
["41UBR23GP101",null,null,null,null,null,null,null,null,null,"11-18-4-757_TP_41UBR23GP101"]
["41UBR23GP301",null,null,null,null,null,null,null,null,null,"11-18-4-896_TP_41UBR23GP301"]
["41UBR23GP501",null,null,null,null,null,null,null,null,null,"11-18-4-900_KP_41UBR23GP501"]
["41UBR27GP201",null,null,null,null,null,null,null,null,null,"11-18-4-1403_KP_41UBR27GP201"]
["41UBR27GP202",null,null,null,null,null,null,null,null,null,"11-18-4-1222_TP_41UBR27GP202"]
["41UBR27GP203",null,null,null,null,null,null,null,null,null,"41UBR27GP203_20170914_KHO"]
["41UBR27GP301",null,null,null,null,null,null,null,null,null,"41UBR27GP301_20170815_KHO"]
["41UBR27GP302",null,null,null,null,null,null,null,null,null,"41UBR27GP302_20170712_KHO"]
["41UBR36GP202",null,null,null,null,null,null,null,null,null,"11-18-4-147_41UBR36GP202"]
["41UBR36GP302",null,null,null,null,null,null,null,null,null,"11-18-4-1730_КР_41UBR36GP302"]
["41UBR36GP501",null,null,null,null,null,null,null,null,null,"11-18-4-329_41UBR36GP501"]
["41UBR93GP201",null,null,null,null,null,null,null,null,null,"41UBR93GP201_20170911_KHO"]
["41UBR93GP202",null,null,null,null,null,null,null,null,null,"11-18-4-1718_ТР_41UBR93GP202"]
["41UBR93GP204",null,null,null,null,null,null,null,null,null,"11-18-4-1058_KP_41UBR93GP204"]
["41UBR93GP301",null,null,null,null,null,null,null,null,null,"11-18-4-895_TP_41UBR93GP301"]
["41UBR93GP302",null,null,null,null,null,null,null,null,null,"41UBR93GP302_20171006_KHO"]
["41UBS00GP031",null,null,null,null,null,null,null,null,null,"41UBS00GP031_монтаж АВР_20171109"]
["41UBS00GP032",null,null,null,null,null,null,null,null,null,"41UBS00GP032_монтаж АВР_20171109"]
["41UBS00GP101",null,null,null,null,null,null,null,null,null,"41UBS00GP101_20170803_KHO"]
["41UKS00GH010",null,null,null,null,null,null,null,null,null,"27-2.2-1-475_УД_КУ-6С;НКУ-РУ;QF1;МП;ЯВШ-3-25-Щ1"]
["41UKS00GH010",null,null,null,null,null,null,null,null,null,"41UKS00GH010_О согл ПИМ испытаний_20171211"]
["41UKS00GH010",null,null,null,null,null,null,null,null,null,"11-18-4-226_ЗИП_41UKS00GH010(020)"]
["41UKS00GH010",null,null,null,null,null,null,null,null,null,"27-2.2-1-1530_КР_ЩПТ 41UKS00GH010"]
["41UKS00GH020",null,null,null,null,null,null,null,null,null,"27-2.2-1-475_УД_КУ-6С;НКУ-РУ;QF1;МП;ЯВШ-3-25-Щ1"]
["41UKS00GH020",null,null,null,null,null,null,null,null,null,"41UKS00GH020_О согл ПИМ испытаний_20171211"]
["41UKS00GH020",null,null,null,null,null,null,null,null,null,"11-18-4-226_ЗИП_41UKS00GH010(020)"]
["41UKS00GP202",null,null,null,null,null,null,null,null,null,"41UKS00GP202_20171010_KHO"]
["41UKS00GP301",null,null,null,null,null,null,null,null,null,"41UKS00GP301_20170928_KHO"]
["41UKS00GP302",null,null,null,null,null,null,null,null,null,"11-18-4-418_41UKS00GP302"]
["41UKS00GP303",null,null,null,null,null,null,null,null,null,"11-18-4-332_41UKS00GP303"]
["41UKS00GP304",null,null,null,null,null,null,null,null,null,"11-18-4-1724_КР_41UKS00GP304"]
["41UKS04GP301",null,null,null,null,null,null,null,null,null,"11-18-4-527_KP_41UKS04GP301"]
["41UKS04GP302",null,null,null,null,null,null,null,null,null,"11-18-4-678_TP_41UKS04GP302"]
["41UKS04GP303",null,null,null,null,null,null,null,null,null,"11-18-4-756_KP_41UKS04GP303"]
["41UKS09GP202",null,null,null,null,null,null,null,null,null,"11-18-4-1063_КP_41UKS09GP202"]
["41UKS09GP301",null,null,null,null,null,null,null,null,null,"11-18-4-894_TP_41UKS09GP301"]
["41UKS14GP201",null,null,null,null,null,null,null,null,null,"11-18-4-1402_KP_41UKS14GP201"]
["41UKS14GP302",null,null,null,null,null,null,null,null,null,"11-18-4-1221_TP_41UKS14GP302"]
["41UKS14GP303",null,null,null,null,null,null,null,null,null,"41UKS14GP303_20170803_KHO"]
["41UKS14GP304",null,null,null,null,null,null,null,null,null,"41UKS14GP304_20170904_KHO"]
["41UKS19GP201",null,null,null,null,null,null,null,null,null,"11-18-4-1725_КР_41UKS19GP201"]
["41UMA07GP101",null,null,null,null,null,null,null,null,null,"11-18-4-538_TP_41UMA07GP101"]
["41UMA07GP202",null,null,null,null,null,null,null,null,null,"41UMA07GP202_20170831_KHO"]
["41UMA07GP204",null,null,null,null,null,null,null,null,null,"11-18-4-425_41UMA07GP204"]
["41UMA07GP205",null,null,null,null,null,null,null,null,null,"41UMA07GP205_20171018_KHO"]
["41UMA07GP301",null,null,null,null,null,null,null,null,null,"41UMA07GP301_20170825_KHO"]
["41UMA15GP202",null,null,null,null,null,null,null,null,null,"11-18-4-156_41UMA15GP202"]
["41UMA15GP203",null,null,null,null,null,null,null,null,null,"11-18-4-319_41UMA15GP203"]
["41UMA15GP203",null,null,null,null,null,null,null,null,null,"11-18-4-889_KP_41UMA15GP203"]
["42UBQ93GP201",null,null,null,null,null,null,null,null,null,"42UBQ93GP201_20171128_KHO"]
["42UBQ93GP301",null,null,null,null,null,null,null,null,null,"42UBQ93GP301_20171102_KHO"]
["42UBQ93GP301",null,null,null,null,null,null,null,null,null,"42UBQ93GP301_11-18-4-1638_20171102_KHO"]
["42UBR00GP201",null,null,null,null,null,null,null,null,null,"42UBR00GP201_20171108_KHO"]
["42UBR00GP202",null,null,null,null,null,null,null,null,null,"42UBR00GP202_20170919_KHO"]
["42UBR00GP203",null,null,null,null,null,null,null,null,null,"11-18-4-677_TP_42UBR00GP203"]
["42UBR00GP301",null,null,null,null,null,null,null,null,null,"42UBR00GP301_20170816_KHO"]
["42UBR00GP401",null,null,null,null,null,null,null,null,null,"11-18-4-892_TP_42UBR00GP401"]
["42UBR00GP501",null,null,null,null,null,null,null,null,null,"11-18-4-755_KP_42UBR00GP501"]
["42UBR04GP101",null,null,null,null,null,null,null,null,null,"11-18-4-1220_TP_42UBR04GP101"]
["42UBR04GP102",null,null,null,null,null,null,null,null,null,"11-18-4-1714_КР_42UBR04GP102"]
["42UBR04GP202",null,null,null,null,null,null,null,null,null,"11-18-4-1059_KP_42UBR04GP202"]
["42UBR12GP201",null,null,null,null,null,null,null,null,null,"42UBR12GP201_20170717_KHO"]
["42UBR12GP302",null,null,null,null,null,null,null,null,null,"11-18-4-1390_TP_42UBR12GP302"]
["42UBR18GP201",null,null,null,null,null,null,null,null,null,"42UBR18GP201_20170822_KHO"]
["42UBR23GH103",null,null,null,null,null,null,null,null,null,"42UBR23GH103_О согл ПИМ испытаний_20171211"]
["42UBR23GH104",null,null,null,null,null,null,null,null,null,"42UBR23GH104_О согл ПИМ испытаний_20171211"]
["42UBR23GP101",null,null,null,null,null,null,null,null,null,"42UBR23GP101_20171020_KHO"]
["42UBR23GP202",null,null,null,null,null,null,null,null,null,"11-18-4-153_42UBR23GP202"]
["42UBR23GP301",null,null,null,null,null,null,null,null,null,"11-18-4-318_42UBR23GP301"]
["42UBR23GP501",null,null,null,null,null,null,null,null,null,"42UBR23GP501_20170920_KHO"]
["42UBR23GP861",null,null,null,null,null,null,null,null,null,"27-2.2-1-652_КР_НКУ-ПР 0,4 кВ, блок НКУ-РУ 0,4 кВ"]
["42UBR27GP101",null,null,null,null,null,null,null,null,null,"11-18-4-536_TP_42UBR27GP101"]
["42UBR27GP204",null,null,null,null,null,null,null,null,null,"11-18-4-671_KP_42UBR27GP204"]
["42UBR27GP205",null,null,null,null,null,null,null,null,null,"11-18-4-426_42UBR27GP205"]
["42UBR27GP303",null,null,null,null,null,null,null,null,null,"42UBR27GP303_20171108_KHO"]
["42UBR36GP203",null,null,null,null,null,null,null,null,null,"42UBR36GP203_20170823_KHO"]
["42UBR36GP301",null,null,null,null,null,null,null,null,null,"42UBR36GP301_20170921_KHO"]
["42UBR36GP302",null,null,null,null,null,null,null,null,null,"42UBR36GP302_20170719_KHO"]
["42UBR36GP501",null,null,null,null,null,null,null,null,null,"11-18-4-754_TP_42UBR36GP501"]
["42UBR93GP201",null,null,null,null,null,null,null,null,null,"11-18-4-415_42UBR93GP201"]
["42UBR93GP202",null,null,null,null,null,null,null,null,null,"42UBR93GP202_20170714_KHO"]
["42UBR93GP301",null,null,null,null,null,null,null,null,null,"11-18-4-524_KP_42UBR93GP301"]
["42UBS00GP031",null,null,null,null,null,null,null,null,null,"42UBS00GP031_монтаж АВР_20171109"]
["42UBS00GP031",null,null,null,null,null,null,null,null,null,"42UBS00GP031_20171114_RU"]
["42UBS00GP032",null,null,null,null,null,null,null,null,null,"42UBS00GP032_монтаж АВР_20171109"]
["42UBS00GP032",null,null,null,null,null,null,null,null,null,"42UBS00GP032_20171114_RU"]
["42UBS00GP032",null,null,null,null,null,null,null,null,null,"27-2.2-1-646_УД_Перечень оборудов"]
["42UBS00GP101",null,null,null,null,null,null,null,null,null,"11-18-4-478_42UBS00GP101"]
["42USV07GP001",null,null,null,null,null,null,null,null,null,"11-18-4-767_KP_42USV07GP001"]
["43UBQ93GP301",null,null,null,null,null,null,null,null,null,"11-18-4-1727_ТР_43UBQ93GP301"]
["43UBS00GP031",null,null,null,null,null,null,null,null,null,"43UBS00GP031_20171123_RU"]
["43UBS00GP031",null,null,null,null,null,null,null,null,null,"43UBS00GP031_монтаж АВР_20171109"]
["43UBS00GP032",null,null,null,null,null,null,null,null,null,"43UBS00GP032_20171123_RU"]
["43UBS00GP032",null,null,null,null,null,null,null,null,null,"43UBS00GP032_монтаж АВР_20171109"]
["43UBS00GP101",null,null,null,null,null,null,null,null,null,"11-18-4-1733_КР_43UBS00GP101"]
["43UCQ00GP301",null,null,null,null,null,null,null,null,null,"43UCQ00GP301_20170921_KHO"]
["4ABQ",null,null,null,null,null,null,null,null,null,"27-2.2-1-1900_ЗИ_4ABQ"]
["4BAA10",null,null,null,null,null,null,null,null,null,"4BAA10_ТТ_обоснов закупки"]
["4BAA10",null,null,null,null,null,null,null,null,null,"27-2.2-1-951_ТР_4BAA10"]
["4BAA10GT120B",null,null,null,null,null,null,null,null,null,"Акт 11-18-4-284_20180302_4BBA10GT120b(130c,140a,160c)"]
["4BAA10GT130C",null,null,null,null,null,null,null,null,null,"Акт 11-18-4-284_20180302_4BBA10GT120b(130c,140a,160c)"]
["4BAA10GT140A",null,null,null,null,null,null,null,null,null,"Акт 11-18-4-284_20180302_4BBA10GT120b(130c,140a,160c)"]
["4BAA10GT160C",null,null,null,null,null,null,null,null,null,"Акт 11-18-4-284_20180302_4BBA10GT120b(130c,140a,160c)"]
["4BAC10",null,null,null,null,null,null,null,null,null,"4BAC10_Генератор выкл_Поставка конденсаторов_ТКП"]
["4BAC10",null,null,null,null,null,null,null,null,null,"4BAC10_9_Ф02-100_126945 запрос стоимости кондеров НЕС"]
["4BAC10",null,null,null,null,null,null,null,null,null,"4BAC10_О снятии события 06.06. со стахового учета в АО СОГАЗ"]
["4BAC10",null,null,null,null,null,null,null,null,null,"4BAC10_О поставке защит конденс для НЕС_111706_20180814"]
["4BAC10",null,null,null,null,null,null,null,null,null,"9_Ф02-100_126945_40BAC10_20180912"]
["4BAC10",null,null,null,null,null,null,null,null,null,"18-07-748с_4BAC10_защитный конденсатор"]
["4BAC10",null,null,null,null,null,null,null,null,null,"18-07-715C_защитные конденсаторы Icar_4BAC10"]
["4BAC10",null,null,null,null,null,null,null,null,null,"4BAC10_HEC 7A_замена конденсаторов_20180615"]
["4BAC10",null,null,null,null,null,null,null,null,null,"4BAC10_Паспорта конденс генераторного выключателя"]
["4BAC10",null,null,null,null,null,null,null,null,null,"4BAC10_М-15 на конденс генераторного выключателя_20180608"]
["4BAC10",null,null,null,null,null,null,null,null,null,"4BAC10_Протокол_20180609"]
["4BAC10",null,null,null,null,null,null,null,null,null,"4BAC10_О замене конденсаторов_20180608"]
["4BAC10",null,null,null,null,null,null,null,null,null,"4BAC10_HEC 7-8_конденсаторы_1HC0001542"]
["4BAC10",null,null,null,null,null,null,null,null,null,"27-2.2-1-950_ТР_4BAC10"]
["4BAC10",null,null,null,null,null,null,null,null,null,"27-2.2-1-1300_ТО_ЭГРУ 40AC10, HEC-7A"]
["4BAC10",null,null,null,null,null,null,null,null,null,"4BAC10_Акт осмотра генерат выключателя_20180608"]
["4BAC10",null,null,null,null,null,null,null,null,null,"4BAC10_замена конденсаторов на ген выкл_20180608"]
["4BAT00",null,null,null,null,null,null,null,"31-27-2.6-1-10-97-201612"]
["4BAT00",null,null,null,null,null,null,null,"31-27-2.6-1-10-74-201704"]
["4BAT00",null,null,null,null,null,null,null,"31-27-2.6-1-10-89-201705"]
["4BAT00",null,null,null,null,null,null,null,"31-27-2.6-1-10-138-201707"]
["4BAT00",null,null,null,null,null,null,null,"31-27-2.6-1-10-138-201707"]
["4BAT10",null,null,null,null,null,null,null,null,null,"27-2.2-1-475_УД_КУ-6С;НКУ-РУ;QF1;МП;ЯВШ-3-25-Щ1"]
["4BAT10",null,null,null,null,null,null,null,null,null,"27-2.2-1-475_УД_КУ-6С;НКУ-РУ;QF1;МП;ЯВШ-3-25-Щ1"]
["4BAT10",null,null,null,null,null,null,null,null,null,"27-2.6-1-783",null,null,null,null,null,null,null,null,{"$f":"E383/1","v":0}]
["4BAT10",null,null,null,null,null,null,null,null,null,"4BAT10_4BAT20_11-18-4-142_СНУ"]
["4BAT10",null,null,null,null,null,null,null,null,null,"АКТ по термосигнализаторам_к Тех акту 27-18-84-2017.docx"]
["4BAT10",null,null,null,null,null,null,null,"27-18-84-2017_201712"]
["4BAT10",null,null,null,null,null,null,null,null,null,"4BAT10_термосигнализатор_20171206_RU"]
["4BAT10",null,null,null,null,null,null,null,"31-27-2.6-1-10-138-201707"]
["4BAT10",null,null,null,null,null,null,null,"31-27-2.6-1-10-138-201707"]
["4BAT10",null,null,null,null,null,null,null,"31-27-2.6-1-10-138-201707"]
["4BAT10",null,null,null,null,null,null,null,null,null,"27-2.2-1-646_УД_Перечень оборудов"]
["4BAT10GH003",null,null,null,null,null,null,null,null,null,"27-2.2-1-1231_УД_КУ-6С,НКУ-РУ 0,4кВ, НКУ-ПР"]
["4BAT20",null,null,null,null,null,null,null,null,null,"27-2.2-1-475_УД_КУ-6С;НКУ-РУ;QF1;МП;ЯВШ-3-25-Щ1"]
["4BAT20",null,null,null,null,null,null,null,null,null,"27-2.2-1-475_УД_КУ-6С;НКУ-РУ;QF1;МП;ЯВШ-3-25-Щ1"]
["4BAT20",null,null,null,null,null,null,null,null,null,"4BAT10_4BAT20_11-18-4-142_СНУ"]
["4BAT20",null,null,null,null,null,null,null,null,null,"АКТ по термосигнализаторам_к Тех акту 27-18-84-2017.docx"]
["4BAT20",null,null,null,null,null,null,null,"27-18-84-2017_201712"]
["4BAT20"]
["4BAT20",null,null,null,null,null,null,null,"31-27-2.6-1-10-37-201702"]
["4BAT20",null,null,null,null,null,null,null,null,null,"4BAT20_термосигнализатор_20171206_RU"]
["4BAT20",null,null,null,null,null,null,null,"31-27-2.6-1-10-138-201707"]
["4BAT20",null,null,null,null,null,null,null,null,null,"27-2.2-1-1304_ТР_4BAT20, ОДЦ-334000.500-У1"]
["4BAT20 Вентилятор № 1",null,null,null,null,null,null,null,null,null,"27-2.2-1-928_УД_4BAT20"]
["4BAT20GH003",null,null,null,null,null,null,null,null,null,"27-2.2-1-656_ТО_4BAT20GH003 ШАОТ"]
["4BAT30",null,null,null,null,null,null,null,null,null,"27-2.2-1-475_УД_КУ-6С;НКУ-РУ;QF1;МП;ЯВШ-3-25-Щ1"]
["4BAT30",null,null,null,null,null,null,null,null,null,"27-2.2-1-475_УД_КУ-6С;НКУ-РУ;QF1;МП;ЯВШ-3-25-Щ1"]
["4BAT30",null,null,null,null,null,null,null,"31-27-2.6-1-10-74-201704",null,"27-2.6-1-784",null,null,null,null,null,null,null,null,{"$f":"E407/1","v":0}]
["4BAT30",null,null,null,null,null,null,null,null,null,"АКТ по термосигнализаторам_к Тех акту 27-18-84-2017.docx"]
["4BAT30",null,null,null,null,null,null,null,"27-18-84-2017_201712"]
["4BAT30",null,null,null,null,null,null,null,"31-27-2.6-1-10-89-201705"]
["4BAT30",null,null,null,null,null,null,null,null,null,"4BAT30_термосигнализатор_20171206_RU"]
["4BBA",null,null,null,null,null,null,null,null,null,"27-2.2-1-90_ТР_4BBA"]
["4BBA00GH003",null,null,null,null,null,null,null,null,null,"27-2.2-1-33_ТР_4BBA00GH003"]
["4BBA03",null,null,null,null,null,null,null,"31-27-2.6-1-10-53-201703",null,"27-2.6-1-2111_ТО_Ячейки КРУ-6кВ"]
["4BBA08",null,null,null,null,null,null,null,null,null,"27-2.2-1-646_УД_Перечень оборудов"]
["4BBA08",null,null,null,null,null,null,null,null,null,"27-2.2-1-428_ТР_4BBA08"]
["4BBA11GH001",null,null,null,null,null,null,null,null,null,"27-2.2-1-22_ТР_4BBA11GH001"]
["4BBA12",null,null,null,null,null,null,null,null,null,"27-2.2-1-475_УД_КУ-6С;НКУ-РУ;QF1;МП;ЯВШ-3-25-Щ1"]
["4BBA12",null,null,null,null,null,null,null,"31-27-2.6-1-10-113-201705",null,"27-2.6-1-2111_ТО_Ячейки КРУ-6кВ"]
["4BBA23",null,null,null,null,null,null,null,"31-27-2.6-1-10-113-201705",null,"27-2.6-1-2111_ТО_Ячейки КРУ-6кВ"]
["4BBA25",null,null,null,null,null,null,null,"31-27-2.6-1-10-113-201705",null,"27-2.6-1-2111_ТО_Ячейки КРУ-6кВ"]
["4BBA27",null,null,null,null,null,null,null,"31-27-2.6-1-10-37-201702",null,"27-2.6-1-2111_ТО_Ячейки КРУ-6кВ"]
["4BBA29",null,null,null,null,null,null,null,"31-27-2.6-1-10-113-201705",null,"27-2.6-1-2111_ТО_Ячейки КРУ-6кВ"]
["4BBA29",null,null,null,null,null,null,null,"31-27-2.6-1-10-138-201707"]
["4BBA29",null,null,null,null,null,null,null,"31-27-2.6-1-10-138-201707"]
["4BBB",null,null,null,null,null,null,null,null,null,"27-2.2-1-35_УД_4BBB"]
["4BBB",null,null,null,null,null,null,null,null,null,"4BBB_20171218_KHO"]
["4BBB00GH003",null,null,null,null,null,null,null,null,null,"27-2.2-1-1904_ТР_4BBB00GH003"]
["4BBB01",null,null,null,null,null,null,null,null,null,"27-2.2-1-475_УД_КУ-6С;НКУ-РУ;QF1;МП;ЯВШ-3-25-Щ1"]
["4BBB02",null,null,null,null,null,null,null,null,null,"11-18-4-250_4BBB(02)"]
["4BBB02",null,null,null,null,null,null,null,null,null,"27-2.2-1-475_УД_КУ-6С;НКУ-РУ;QF1;МП;ЯВШ-3-25-Щ1"]
["4BBB02",null,null,null,null,null,null,null,null,null,"27-2.2-1-475_УД_КУ-6С;НКУ-РУ;QF1;МП;ЯВШ-3-25-Щ1"]
["4BBB02",null,null,null,null,null,null,null,null,null,"27-2.2-1-475_УД_КУ-6С;НКУ-РУ;QF1;МП;ЯВШ-3-25-Щ1"]
["4BBB03",null,null,null,null,null,null,null,"31-27-2.6-1-10-113-201705",null,"27-2.6-1-2111_ТО_Ячейки КРУ-6кВ"]
["4BBB12",null,null,null,null,null,null,null,null,null,"27-2.6-1-36-2017",null,null,null,null,null,null,null,null,{"$f":"E435/1","v":0}]
["4BBB16",null,null,null,null,null,null,null,null,null,"27-2.2-1-475_УД_КУ-6С;НКУ-РУ;QF1;МП;ЯВШ-3-25-Щ1"]
["4BBB17",null,null,null,null,null,null,null,null,null,"27-2.2-1-475_УД_КУ-6С;НКУ-РУ;QF1;МП;ЯВШ-3-25-Щ1"]
["4BBB19",null,null,null,null,null,null,null,"31-27-2.6-1-10-113-201705",null,"27-2.6-1-2111_ТО_Ячейки КРУ-6кВ"]
["4BBB21",null,null,null,null,null,null,null,null,null,"27-2.2-1-475_УД_КУ-6С;НКУ-РУ;QF1;МП;ЯВШ-3-25-Щ1"]
["4BBB24",null,null,null,null,null,null,null,null,null,"27-2.2-1-475_УД_КУ-6С;НКУ-РУ;QF1;МП;ЯВШ-3-25-Щ1"]
["4BBB25",null,null,null,null,null,null,null,null,null,"27-2.2-1-50_УД_4BBC22,BBB25"]
["4BBB27",null,null,null,null,null,null,null,null,null,"27-2.2-1-475_УД_КУ-6С;НКУ-РУ;QF1;МП;ЯВШ-3-25-Щ1"]
["4BBB28",null,null,null,null,null,null,null,"31-27-2.6-1-10-89-201705",null,"27-2.6-1-2111_ТО_Ячейки КРУ-6кВ"]
["4BBB28",null,null,null,null,null,null,null,null,null,"27-2.2-1-51_УД_4BBC21,BBB28"]
["4BBB29",null,null,null,null,null,null,null,null,null,"27-2.2-1-475_УД_КУ-6С;НКУ-РУ;QF1;МП;ЯВШ-3-25-Щ1"]
["4BBB30",null,null,null,null,null,null,null,null,null,"27-2.2-1-475_УД_КУ-6С;НКУ-РУ;QF1;МП;ЯВШ-3-25-Щ1"]
["4BBC",null,null,null,null,null,null,null,null,null,"27-2.2-1-39_УД_4BBC"]
["4BBC",null,null,null,null,null,null,null,null,null,"27-2.2-1-38_УД_4BBC"]
["4BBC",null,null,null,null,null,null,null,null,null,"27-2.6-1-864",null,null,null,null,null,null,null,null,{"$f":"E449/1","v":0}]
["4BBC12",null,null,null,null,null,null,null,null,null,"27-2.2-1-475_УД_КУ-6С;НКУ-РУ;QF1;МП;ЯВШ-3-25-Щ1"]
["4BBC21",null,null,null,null,null,null,null,null,null,"27-2.2-1-51_УД_4BBC21,BBB28"]
["4BBC22",null,null,null,null,null,null,null,null,null,"27-2.2-1-50_УД_4BBC22,BBB25"]
["4BBC25",null,null,null,null,null,null,null,null,null,"27-2.2-1-475_УД_КУ-6С;НКУ-РУ;QF1;МП;ЯВШ-3-25-Щ1"]
["4BBC29",null,null,null,null,null,null,null,null,null,"27-2.2-1-475_УД_КУ-6С;НКУ-РУ;QF1;МП;ЯВШ-3-25-Щ1"]
["4BBC30",null,null,null,null,null,null,null,"31-27-2.6-1-10-113-201705",null,"27-2.6-1-2111_ТО_Ячейки КРУ-6кВ"]
["4BBC31",null,null,null,null,null,null,null,null,null,"27-2.2-1-475_УД_КУ-6С;НКУ-РУ;QF1;МП;ЯВШ-3-25-Щ1"]
["4BBC31",null,null,null,null,null,null,null,"31-27-2.6-1-10-113-201705",null,"27-2.6-1-2111_ТО_Ячейки КРУ-6кВ"]
["4BBD02",null,null,null,null,null,null,null,null,null,"11-18-4-337_4BBD(02)"]
["4BBD02",null,null,null,null,null,null,null,null,null,"27-2.2-1-475_УД_КУ-6С;НКУ-РУ;QF1;МП;ЯВШ-3-25-Щ1"]
["4BBD03",null,null,null,null,null,null,null,null,null,"27-2.6-1-37-2017",null,null,null,null,null,null,null,null,{"$f":"E460/1","v":0}]
["4BBD04",null,null,null,null,null,null,null,"31-27-2.6-1-10-89-201705",null,"27-2.6-1-2111_ТО_Ячейки КРУ-6кВ"]
["4BBD04",null,null,null,null,null,null,null,"31-27-2.6-1-10-89-201705"]
["4BBD16",null,null,null,null,null,null,null,null,null,"27-2.2-1-475_УД_КУ-6С;НКУ-РУ;QF1;МП;ЯВШ-3-25-Щ1"]
["4BBD17",null,null,null,null,null,null,null,null,null,"27-2.2-1-475_УД_КУ-6С;НКУ-РУ;QF1;МП;ЯВШ-3-25-Щ1"]
["4BBD20",null,null,null,null,null,null,null,"31-27-2.6-1-10-89-201705",null,"27-2.6-1-2111_ТО_Ячейки КРУ-6кВ"]
["4BBD21",null,null,null,null,null,null,null,"31-27-2.6-1-10-74-201704",null,"27-2.6-1-2111_ТО_Ячейки КРУ-6кВ"]
["4BBD23",null,null,null,null,null,null,null,null,null,"27-2.2-1-475_УД_КУ-6С;НКУ-РУ;QF1;МП;ЯВШ-3-25-Щ1"]
["4BBD25",null,null,null,null,null,null,null,null,null,"27-2.2-1-475_УД_КУ-6С;НКУ-РУ;QF1;МП;ЯВШ-3-25-Щ1"]
["4BBD27",null,null,null,null,null,null,null,null,null,"27-2.2-1-475_УД_КУ-6С;НКУ-РУ;QF1;МП;ЯВШ-3-25-Щ1"]
["4BBD27",null,null,null,null,null,null,null,null,null,"27-2.2-1-49_УД_4BBD27,BDB01"]
["4BBD30",null,null,null,null,null,null,null,"31-27-2.6-1-10-113-201705",null,"27-2.6-1-2111_ТО_Ячейки КРУ-6кВ"]
["4BBD31",null,null,null,null,null,null,null,null,null,"27-2.2-1-475_УД_КУ-6С;НКУ-РУ;QF1;МП;ЯВШ-3-25-Щ1"]
["4BBT01",null,null,null,null,null,null,null,null,null,"27-2.2-1-475_УД_КУ-6С;НКУ-РУ;QF1;МП;ЯВШ-3-25-Щ1"]
["4BBT01",null,null,null,null,null,null,null,null,null,"27-2.6-1-785",null,null,null,null,null,null,null,null,{"$f":"E474/1","v":0}]
["4BBT01",null,null,null,null,null,null,null,"31-27-2.6-1-10-97-201612"]
["4BBT01",null,null,null,null,null,null,null,null,null,"4BBT01_термосигнализатор_20171206_RU"]
["4BBT01",null,null,null,null,null,null,null,"27-18-84-2017_201712"]
["4BBT01",null,null,null,null,null,null,null,null,null,"АКТ по термосигнализаторам_к Тех акту 27-18-84-2017.docx"]
["4BBT01",null,null,null,null,null,null,null,null,null,"27-2.2-1-1305_ТР_4BBT01, 4BBT02, ТРДНС-63000.35-У1"]
["4BBT02",null,null,null,null,null,null,null,null,null,"27-2.2-1-475_УД_КУ-6С;НКУ-РУ;QF1;МП;ЯВШ-3-25-Щ1"]
["4BBT02",null,null,null,null,null,null,null,null,null,"27-2.6-1-786",null,null,null,null,null,null,null,null,{"$f":"E481/1","v":0}]
["4BBT02",null,null,null,null,null,null,null,null,null,"4BBT02_термосигнализатор_20171206_RU"]
["4BBT02",null,null,null,null,null,null,null,"27-18-84-2017_201712"]
["4BBT02",null,null,null,null,null,null,null,null,null,"АКТ по термосигнализаторам_к Тех акту 27-18-84-2017.docx"]
["4BBT02",null,null,null,null,null,null,null,null,null,"27-2.2-1-1305_ТР_4BBT01, 4BBT02, ТРДНС-63000.35-У1"]
["4BCA01",null,null,null,null,null,null,null,null,null,"27-2.2-1-1419_ТР_Секция и выключатели 6 кВ"]
["4BCA04",null,null,null,null,null,null,null,null,null,"27-2.2-1-1419_ТР_Секция и выключатели 6 кВ"]
["4BCA1",null,null,null,null,null,null,null,null,null,"27-2.2-1-1419_ТР_Секция и выключатели 6 кВ"]
["4BCA1/8",null,null,null,null,null,null,null,null,null,"27-2.2-1-1419_ТР_Секция и выключатели 6 кВ"]
["4BCA2",null,null,null,null,null,null,null,null,null,"27-2.2-1-1419_ТР_Секция и выключатели 6 кВ"]
["4BCA5",null,null,null,null,null,null,null,null,null,"27-2.2-1-1419_ТР_Секция и выключатели 6 кВ"]
["4BCA6",null,null,null,null,null,null,null,null,null,"27-2.2-1-1419_ТР_Секция и выключатели 6 кВ"]
["4BCA6",null,null,null,null,null,null,null,null,null,"27-2.2-1-1419_ТР_Секция и выключатели 6 кВ"]
["4BCA6",null,null,null,null,null,null,null,null,null,"27-2.2-1-1419_ТР_Секция и выключатели 6 кВ"]
["4BCA7",null,null,null,null,null,null,null,null,null,"27-2.2-1-1419_ТР_Секция и выключатели 6 кВ"]
["4BCA8",null,null,null,null,null,null,null,null,null,"27-2.2-1-1419_ТР_Секция и выключатели 6 кВ"]
["4BCC",null,null,null,null,null,null,null,null,null,"27-2.6-1-1862_ТР_4BCC"]
["4BCC",null,null,null,null,null,null,null,null,null,"27-2.2-1-57_УД_4BCC"]
["4BCC01",null,null,null,null,null,null,null,null,null,"27-2.2-1-475_УД_КУ-6С;НКУ-РУ;QF1;МП;ЯВШ-3-25-Щ1"]